bitfinex-derivatives/quotes_BNBF0:USTF0_20250509
["timestamp","ask_amount","ask_price","bid_price","bid_amount"]
[1746787303369,0.2643859,634.92,633.77,2.32657189]
[1746787305966,0.2643859,635.86,633.77,2.32657189]
[1746787306171,0.27425437,634.91,633.77,2.32657189]
[1746787306372,0.2643859,635.85,633.77,2.32657189]
[1746787306670,0.2742695,634.9,633.77,2.32657189]
[1746787306870,0.2643859,635.84,633.77,2.32657189]
[1746787307071,0.2643859,634.89,633.77,2.32657189]
[1746787307270,0.5386554,634.89,633.77,2.32657189]
[1746787307571,0.2643859,635.86,633.77,2.32657189]
[1746787307871,0.2742695,634.88,633.77,2.32657189]
[1746787308072,0.2643859,634.87,633.77,2.32657189]
[1746787308474,0.2742695,635.85,633.77,2.32657189]
[1746787308772,0.2643859,635.84,633.77,2.32657189]
[1746787308972,0.5386554,635.84,633.77,2.32657189]
[1746787309174,0.2643859,635.83,633.77,2.32657189]
[1746787309372,0.2643859,635.82,633.77,2.32657189]
[1746787309674,0.2643859,635.81,633.77,2.32657189]
[1746787309974,0.2643859,635.8,633.77,2.32657189]
[1746787310274,0.2643859,635.79,633.77,2.32657189]
[1746787310675,0.2643859,635.78,633.77,2.32657189]
[1746787310971,0.2643859,635.77,633.77,2.32657189]
[1746787311276,0.2643859,635.76,633.77,2.32657189]
[1746787311670,0.2643859,635.75,633.77,2.32657189]
[1746787311870,0.2643859,635.74,633.77,2.32657189]
[1746787312375,0.2643859,635.73,633.77,2.32657189]
[1746787312776,0.2643859,635.72,633.77,2.32657189]
[1746787313077,0.2643859,635.71,633.77,2.32657189]
[1746787313378,0.2643859,635.7,633.77,2.32657189]
[1746787313678,0.2643859,635.69,633.77,2.32657189]
[1746787314079,2.02361601,635.64,633.77,2.32657189]
[1746787314477,0.2643859,635.63,633.77,2.32657189]
[1746787314773,0.2643859,635.62,633.77,2.32657189]
[1746787314978,0.53871053,635.62,633.77,2.32657189]
[1746787315175,0.2643859,635.61,633.77,2.32657189]
[1746787315375,0.2643859,635.6,633.77,3.19657189]
[1746787315672,0.2643859,635.59,633.77,3.19657189]
[1746787316076,0.2643859,635.58,633.77,3.19657189]
[1746787316378,0.2643859,635.57,633.77,3.19657189]
[1746787316779,2.02361601,635.39,633.77,3.19657189]
[1746787317178,0.2643859,635.38,633.77,3.19657189]
[1746787317479,0.2643859,635.37,633.77,3.19657189]
[1746787317784,0.2643859,635.36,633.77,3.19657189]
[1746787317982,0.53875703,635.36,633.77,3.19657189]
[1746787318181,0.2643859,635.35,633.77,3.19657189]
[1746787318481,0.2643859,635.34,633.77,3.19657189]
[1746787318776,0.2643859,635.34,633.77,3.67957189]
[1746787319076,0.2643859,635.33,633.77,3.67957189]
[1746787319481,0.2643859,635.32,633.77,3.67957189]
[1746787319883,0.2643859,635.31,633.77,3.67957189]
[1746787320181,0.2643859,635.3,633.77,3.67957189]
[1746787320577,0.2643859,635.29,633.77,3.67957189]
[1746787320877,0.2643859,635.28,633.77,3.67957189]
[1746787321082,0.53877434,635.28,633.77,3.67957189]
[1746787321283,0.2643859,635.27,633.77,3.67957189]
[1746787321582,0.2643859,635.26,633.77,3.67957189]
[1746787321983,0.2643859,635.25,633.77,3.67957189]
[1746787322178,0.27438844,635.28,633.77,3.67957189]
[1746787322479,0.26451433,635.27,633.77,3.67957189]
[1746787322783,0.26451433,635.26,633.77,3.67957189]
[1746787323182,0.26451433,635.25,633.77,3.67957189]
[1746787323482,0.27438844,635.28,633.77,3.67957189]
[1746787323483,0.26451433,635.24,633.77,3.67957189]
[1746787323884,0.26451433,635.23,633.77,3.67957189]
[1746787324183,0.26451433,635.22,633.77,3.67957189]
[1746787324483,0.26451433,635.21,633.77,3.67957189]
[1746787324784,0.26451433,635.2,633.77,3.67957189]
[1746787325278,0.26451433,635.19,633.77,3.67957189]
[1746787325682,0.26451433,635.18,633.77,3.67957189]
[1746787325983,0.26451433,635.17,633.77,3.67957189]
[1746787326379,0.26451433,635.16,633.77,3.67957189]
[1746787326679,0.26451433,635.15,633.77,3.67957189]
[1746787326980,0.53888114,635.15,633.77,3.67957189]
[1746787327184,0.26451433,635.14,633.77,3.67957189]
[1746787327379,0.26451433,635.13,633.77,3.67957189]
[1746787327884,0.26451433,635.12,633.77,3.67957189]
[1746787328184,0.26451433,635.11,633.77,3.67957189]
[1746787328481,0.26451433,635.1,633.77,3.67957189]
[1746787328784,0.26451433,635.09,633.77,3.67957189]
[1746787329181,0.26451433,635.08,633.77,3.67957189]
[1746787329684,0.26451433,635.07,633.77,3.67957189]
[1746787330083,0.26451433,635.06,633.77,3.67957189]
[1746787330484,0.26451433,635.05,633.77,3.67957189]
[1746787330685,0.26451433,635.04,633.77,3.67957189]
[1746787331185,0.26451433,635.03,633.77,3.67957189]
[1746787331487,0.26451433,635.02,633.77,3.67957189]
[1746787331887,0.26451433,635.01,633.77,3.67957189]
[1746787332285,0.26451433,635.0,633.77,3.67957189]
[1746787332787,0.26451433,634.99,633.77,3.67957189]
[1746787333187,0.53895254,634.99,633.77,3.67957189]
[1746787333385,0.26451433,634.98,633.77,3.67957189]
[1746787333788,0.26451433,634.97,633.77,3.67957189]
[1746787334187,0.26451433,634.96,633.77,3.67957189]
[1746787334585,0.26451433,634.98,633.77,3.67957189]
[1746787335983,0.27441657,634.97,633.77,3.67957189]
[1746787336284,0.26451433,634.96,633.77,3.67957189]
[1746787336689,0.26451433,634.95,633.77,3.67957189]
[1746787337189,0.26451433,634.94,633.77,3.67957189]
[1746787337589,0.26451433,634.93,633.77,3.67957189]
[1746787337790,0.26451433,634.92,633.77,3.67957189]
[1746787338390,0.27441657,634.97,633.77,3.67957189]
[1746787338690,0.26468181,634.96,633.77,3.67957189]
[1746787339191,0.26468181,634.95,633.77,3.67957189]
[1746787339491,0.26468181,634.94,633.77,3.67957189]
[1746787339892,0.26468181,634.93,633.77,3.67957189]
[1746787340189,0.26468181,634.92,633.77,3.67957189]
[1746787340494,0.26468181,634.91,633.77,3.67957189]
[1746787340687,0.26468181,634.9,633.77,3.67957189]
[1746787340993,0.26468181,634.95,633.77,3.67957189]
[1746787342096,0.27447717,634.94,633.77,3.67957189]
[1746787342495,0.26468181,634.93,633.77,3.67957189]
[1746787343796,0.27447717,634.94,633.77,3.67957189]
[1746787344297,0.26464267,634.93,633.77,3.67957189]
[1746787345096,0.27440034,634.92,633.77,3.67957189]
[1746787345797,0.26464267,634.91,633.77,3.67957189]
[1746787347497,0.26464267,634.9,633.77,3.67957189]
[1746787347793,2.02361601,635.84,633.77,3.67957189]
[1746787347794,0.26464267,634.89,633.77,3.67957189]
[1746787348097,0.53907763,634.89,633.77,3.67957189]
[1746787348298,0.26464267,634.88,633.77,3.67957189]
[1746787348600,0.26464267,634.87,633.77,3.67957189]
[1746787349101,0.26464267,634.86,633.77,3.67957189]
[1746787349400,0.26464267,634.85,633.77,3.67957189]
[1746787349800,0.26464267,634.84,633.77,3.67957189]
[1746787350501,0.26464267,634.83,633.77,3.67957189]
[1746787350803,0.26464267,634.82,633.77,3.67957189]
[1746787351103,0.26464267,634.81,633.77,3.67957189]
[1746787351497,0.26464267,634.8,633.77,3.67957189]
[1746787351805,0.26464267,634.79,633.77,3.67957189]
[1746787352104,0.26464267,634.78,633.77,3.67957189]
[1746787352500,0.26464267,634.77,633.77,3.67957189]
[1746787352903,0.26464267,634.76,633.77,3.67957189]
[1746787353401,0.26464267,634.75,633.77,3.67957189]
[1746787353807,0.26464267,634.74,633.77,3.67957189]
[1746787354006,0.5391285,634.74,633.77,3.67957189]
[1746787354207,0.26464267,634.73,633.77,3.67957189]
[1746787354401,0.26464267,634.72,633.77,3.67957189]
[1746787354703,0.26464267,634.73,633.77,3.67957189]
[1746787355007,0.26464267,634.72,633.77,3.67957189]
[1746787355409,0.26464267,634.73,633.77,3.67957189]
[1746787355906,0.26464267,634.72,633.77,3.67957189]
[1746787356605,0.26464267,634.71,633.77,3.67957189]
[1746787357008,0.26464267,634.7,633.77,3.67957189]
[1746787357308,0.26464267,634.69,633.77,3.67957189]
[1746787357808,0.26464267,634.68,633.77,3.67957189]
[1746787358106,0.26464267,634.67,633.77,3.67957189]
[1746787358511,0.26464267,634.66,633.77,3.67957189]
[1746787358809,0.26464267,634.65,633.77,3.67957189]
[1746787359108,0.26464267,634.64,633.77,3.67957189]
[1746787359510,0.26464267,634.63,633.77,3.67957189]
[1746787359805,0.26464267,634.62,633.77,3.67957189]
[1746787360110,0.26464267,634.61,633.77,3.67957189]
[1746787360503,0.26464267,634.6,633.77,3.67957189]
[1746787360809,0.26464267,634.59,633.77,3.67957189]
[1746787361310,0.26464267,634.58,633.77,3.67957189]
[1746787361610,0.26464267,634.57,633.77,3.67957189]
[1746787361909,0.26464267,634.56,633.77,3.67957189]
[1746787362208,0.27453564,634.62,633.77,3.67957189]
[1746787362209,0.26464267,634.55,633.77,3.67957189]
[1746787362509,0.26464267,634.54,633.77,3.67957189]
[1746787362910,0.26464267,634.53,633.77,3.67957189]
[1746787363310,0.26464267,634.61,633.77,3.67957189]
[1746787363712,0.26464267,634.6,633.77,3.67957189]
[1746787364006,0.26464267,634.59,633.77,3.67957189]
[1746787364409,0.26464267,634.58,633.77,3.67957189]
[1746787364810,0.26464267,634.57,633.77,3.67957189]
[1746787365009,0.26464267,634.56,633.77,3.67957189]
[1746787365309,0.26464267,634.55,633.77,3.67957189]
[1746787365714,0.26464267,634.61,633.77,3.67957189]
[1746787366108,0.53919563,634.6,633.77,3.67957189]
[1746787366410,0.26464267,634.59,633.77,3.67957189]
[1746787366810,0.26464267,634.58,633.77,3.67957189]
[1746787367311,0.26464267,634.59,633.77,3.67957189]
[1746787369112,0.27454538,634.58,633.77,3.67957189]
[1746787369410,0.26464267,634.57,633.77,3.67957189]
[1746787375110,0.27444362,634.56,633.77,3.67957189]
[1746787375711,0.26464267,634.55,633.77,3.67957189]
[1746787376612,0.27444362,634.56,633.77,3.67957189]
[1746787377113,0.26465266,634.55,633.77,3.67957189]
[1746787378210,0.27445011,634.54,633.77,3.67957189]
[1746787378706,0.26465266,634.53,633.77,3.67957189]
[1746787379811,0.27445011,634.54,633.77,3.67957189]
[1746787380113,0.26465133,634.53,633.77,3.67957189]
[1746787385012,0.26465133,634.52,633.77,3.67957189]
[1746787385318,0.26465133,634.51,633.77,3.67957189]
[1746787385716,0.26465133,634.5,633.77,3.67957189]
[1746787386019,0.26465133,634.49,633.77,3.67957189]
[1746787386321,0.26465133,634.48,633.77,3.67957189]
[1746787386621,0.26465133,634.47,633.77,3.67957189]
[1746787387015,0.26465133,634.46,633.77,3.67957189]
[1746787387219,0.53922487,634.46,633.77,3.67957189]
[1746787387420,0.26465133,634.45,633.77,3.67957189]
[1746787387622,0.26465133,634.44,633.77,3.67957189]
[1746787388022,0.26465133,634.43,633.77,3.67957189]
[1746787388425,0.26465133,634.42,633.77,3.67957189]
[1746787388722,0.26465133,634.41,633.77,3.67957189]
[1746787389525,0.26465133,634.45,633.77,3.67957189]
[1746787389726,0.26465133,634.4,633.77,3.67957189]
[1746787389919,0.26465133,634.45,633.77,3.67957189]
[1746787390124,0.27456379,634.44,633.77,3.67957189]
[1746787390725,0.26465133,634.43,633.77,3.67957189]
[1746787393227,0.27450315,634.42,633.77,3.67957189]
[1746787393722,0.26465133,634.41,633.77,3.67957189]
[1746787396027,0.27447284,634.4,633.77,3.67957189]
[1746787396322,0.26465133,634.39,633.77,3.67957189]
[1746787397227,0.27447284,634.4,633.77,3.67957189]
[1746787397627,0.26461044,634.39,633.77,3.67957189]
[1746787399022,0.27442847,634.38,633.77,3.67957189]
[1746787399427,0.26461044,634.37,633.77,2.30457189]
[1746787402124,0.27442523,634.36,633.77,2.30457189]
[1746787402324,0.26461044,634.35,633.77,2.30457189]
[1746787408727,0.26461044,635.1,633.77,2.30457189]
[1746787409034,0.27441873,635.09,633.77,2.30457189]
[1746787409335,0.26450352,635.08,633.77,2.30457189]
[1746787409634,0.26450352,635.07,633.77,2.30457189]
[1746787410035,0.26450352,635.06,633.77,2.30457189]
[1746787410838,0.26450352,635.05,633.77,2.30457189]
[1746787411033,0.53889412,635.05,633.77,2.30457189]
[1746787411235,0.26450352,635.04,633.77,2.30457189]
[1746787414033,0.27436789,635.03,633.77,2.30457189]
[1746787414641,0.26450352,635.02,633.77,2.30457189]
[1746787414939,0.27436789,635.03,633.77,2.30457189]
[1746787415238,0.26447204,635.02,633.77,2.30457189]
[1746787423036,2.02361601,636.24,633.77,2.30457189]
[1746787423341,0.26438912,636.23,633.77,2.30457189]
[1746787423737,0.26438912,636.22,633.77,2.30457189]
[1746787424035,0.53861864,636.22,633.77,2.30457189]
[1746787424241,0.26438912,636.21,633.77,2.30457189]
[1746787424642,0.26438912,636.21,633.77,3.13957189]
[1746787425039,0.26438912,636.2,633.77,3.13957189]
[1746787425342,0.26438912,636.19,633.77,3.13957189]
[1746787425542,0.26438912,636.18,633.77,3.13957189]
[1746787426142,0.26438912,636.17,633.77,3.13957189]
[1746787426437,0.53861864,636.17,633.77,3.13957189]
[1746787426738,0.26438912,636.16,633.77,3.13957189]
[1746787427043,0.26438912,636.15,633.77,3.13957189]
[1746787427343,0.26438912,636.14,633.77,3.13957189]
[1746787427642,0.26438912,636.13,633.77,3.13957189]
[1746787427939,0.26438912,636.13,633.77,3.62257189]
[1746787428143,0.26438912,636.12,633.77,3.62257189]
[1746787428444,0.26438912,636.11,633.77,3.62257189]
[1746787428744,0.26438912,636.1,633.77,3.62257189]
[1746787429145,0.26438912,636.09,633.77,3.62257189]
[1746787429546,0.26438912,636.08,633.77,3.62257189]
[1746787429745,0.26438912,636.07,633.77,3.62257189]
[1746787430146,0.26438912,636.06,633.77,3.62257189]
[1746787430541,0.26438912,636.05,633.77,3.62257189]
[1746787431248,0.26438912,636.04,633.77,3.62257189]
[1746787431646,0.26438912,636.03,633.77,3.62257189]
[1746787432147,0.53860891,636.02,633.77,3.62257189]
[1746787432749,0.26438912,636.01,633.77,3.62257189]
[1746787433049,0.26438912,636.0,633.77,3.62257189]
[1746787433345,0.26438912,635.99,633.77,3.62257189]
[1746787433749,0.26438912,635.98,633.77,3.62257189]
[1746787434051,0.26438912,635.97,633.77,3.62257189]
[1746787434447,0.26438912,635.96,633.77,3.62257189]
[1746787434645,0.26438912,635.95,633.77,3.62257189]
[1746787435046,0.26438912,635.94,633.77,3.62257189]
[1746787435350,0.26438912,635.93,633.77,3.62257189]
[1746787435750,0.26438912,635.92,633.77,3.62257189]
[1746787436051,0.27421979,636.02,633.77,3.62257189]
[1746787436352,0.26427476,636.01,633.77,3.62257189]
[1746787436851,0.26427476,636.0,633.78,0.28971207]
[1746787437352,0.26427476,635.99,633.78,0.28971207]
[1746787437749,0.26427476,635.98,633.78,0.28971207]
[1746787437946,0.26427476,635.97,633.78,0.28971207]
[1746787438150,0.27413555,635.98,633.88,0.31551713]
[1746787438451,0.26423963,635.97,633.89,0.28969114]
[1746787438750,0.26423963,635.96,633.99,0.31546238]
[1746787439051,0.26423963,635.95,633.99,0.31546238]
[1746787439251,0.26423963,635.95,634.0,0.72]
[1746787439548,2.02361601,635.8,634.02,0.31544746]
[1746787439946,0.26423963,635.79,634.02,0.31544746]
[1746787441751,0.26423963,635.97,634.02,0.31544746]
[1746787442050,0.26423963,635.96,634.02,0.31544746]
[1746787442451,0.26423963,635.95,634.02,0.31544746]
[1746787442750,0.26423963,635.94,634.02,0.31544746]
[1746787443146,0.26423963,635.93,634.02,0.31544746]
[1746787443449,0.26423963,635.92,634.02,0.31544746]
[1746787443851,0.26423963,635.91,634.02,0.31544746]
[1746787444050,0.53837302,635.91,634.02,0.31544746]
[1746787444251,0.26423963,635.9,634.02,0.31544746]
[1746787444551,0.26423963,635.89,634.02,0.31544746]
[1746787444846,0.26423963,635.88,634.02,0.31544746]
[1746787445151,0.26423963,635.87,634.02,0.31544746]
[1746787445352,0.26423963,635.86,634.02,0.31544746]
[1746787445652,0.27413339,635.91,634.02,0.31544746]
[1746787445952,0.26429538,635.9,634.02,0.31544746]
[1746787446252,0.26429538,635.9,634.02,0.79844746]
[1746787446450,0.26429538,635.89,634.02,0.79844746]
[1746787447047,0.53846224,635.88,634.02,0.79844746]
[1746787447353,0.26429538,635.87,634.02,0.79844746]
[1746787447756,0.26429538,635.86,634.02,0.79844746]
[1746787448054,0.26429538,635.85,634.02,0.79844746]
[1746787448452,0.26429538,635.87,634.02,0.79844746]
[1746787449856,0.26429538,635.86,634.02,0.79844746]
[1746787450151,0.5385249,635.86,634.02,0.79844746]
[1746787450357,0.26429538,635.85,634.02,0.79844746]
[1746787450856,0.26429538,635.84,634.02,0.79844746]
[1746787451157,0.26429538,635.83,634.02,0.79844746]
[1746787451552,0.26429538,635.82,634.02,0.79844746]
[1746787451954,0.26429538,635.81,634.02,0.79844746]
[1746787452163,0.26429538,635.8,634.02,0.79844746]
[1746787452553,0.26429538,635.79,634.02,0.79844746]
[1746787452954,0.26429538,635.78,634.02,0.79844746]
[1746787453152,0.53851625,635.78,634.02,0.79844746]
[1746787453357,0.26429538,635.77,634.02,0.79844746]
[1746787453656,0.26429538,635.76,634.02,0.79844746]
[1746787454058,2.02361601,635.71,634.02,0.79844746]
[1746787454452,0.26429538,635.7,634.02,0.79844746]
[1746787454757,2.02361601,635.71,634.02,0.79844746]
[1746787454758,0.26429538,635.69,634.02,0.79844746]
[1746787455157,0.26429538,635.68,634.02,1.52944746]
[1746787455551,0.26429538,635.67,634.02,1.52944746]
[1746787456058,0.26429538,635.66,634.02,1.52944746]
[1746787456458,0.26429538,635.65,634.02,1.52944746]
[1746787456854,0.26429538,635.64,634.02,1.52944746]
[1746787457059,0.26429538,635.86,634.02,1.52944746]
[1746787457260,0.27419495,635.63,634.02,1.52944746]
[1746787457459,0.26429538,635.62,634.02,1.52944746]
[1746787457862,0.53849033,635.62,634.02,1.52944746]
[1746787458064,0.26429538,635.61,634.02,1.52944746]
[1746787459065,0.27421115,635.6,634.02,1.52944746]
[1746787459864,0.26429538,635.59,634.02,1.52944746]
[1746787460161,0.26429538,635.58,634.02,1.52944746]
[1746787460367,0.26429538,635.59,634.02,1.52944746]
[1746787461068,0.27421115,635.6,634.02,1.52944746]
[1746787461468,0.26427274,635.59,634.02,1.52944746]
[1746787462264,0.27419603,635.58,634.02,1.52944746]
[1746787462666,0.26427274,635.57,634.02,1.52944746]
[1746787468067,0.27416038,635.56,634.02,1.52944746]
[1746787468470,0.26427274,635.55,634.02,1.52944746]
[1746787471069,0.27416146,635.54,634.02,1.52944746]
[1746787471369,0.26427274,635.53,634.02,1.52944746]
[1746787472575,0.26427274,635.52,634.02,1.52944746]
[1746787472977,0.26427274,635.51,634.02,1.52944746]
[1746787473179,0.26427274,635.51,634.02,2.24144746]
[1746787473380,0.26427274,635.5,634.02,2.24144746]
[1746787473881,0.26427274,635.49,634.02,2.24144746]
[1746787474180,0.5384234,635.49,634.02,2.24144746]
[1746787474380,0.26427274,635.48,634.02,2.24144746]
[1746787474682,0.26427274,635.47,634.02,2.24144746]
[1746787474979,0.26427274,635.46,634.02,2.24144746]
[1746787475482,0.26427274,635.45,634.02,2.24144746]
[1746787475781,0.26427274,635.44,634.02,2.24144746]
[1746787475982,0.26427274,635.43,634.02,2.24144746]
[1746787476382,0.26427274,635.42,634.02,2.24144746]
[1746787476580,0.26427274,635.42,634.02,3.11544746]
[1746787476778,0.26427274,635.41,634.02,3.11544746]
[1746787476978,0.26427274,635.48,634.02,3.11544746]
[1746787477181,0.26427274,635.47,634.02,3.11544746]
[1746787477382,0.27421979,635.4,634.02,3.11544746]
[1746787477681,0.26427274,635.69,634.02,3.11544746]
[1746787477881,0.53849253,635.39,634.02,3.11544746]
[1746787478084,0.26427274,635.38,634.02,3.11544746]
[1746787478284,0.53849253,635.38,634.02,3.11544746]
[1746787478486,0.26427274,635.37,634.02,3.11544746]
[1746787480085,0.27420467,635.36,634.02,3.11544746]
[1746787480585,0.26427274,635.35,634.02,3.11544746]
[1746787482404,0.27420467,635.36,634.02,3.11544746]
[1746787482882,2.02361601,635.81,634.02,3.11544746]
[1746787483087,0.27420359,635.35,634.02,3.11544746]
[1746787483488,0.26426703,635.8,634.02,3.11544746]
[1746787483688,0.2741485,635.34,634.02,3.11544746]
[1746787483887,2.02361601,636.32,634.02,3.11544746]
[1746787484188,0.2741485,635.33,634.02,3.11544746]
[1746787484389,0.26426577,636.31,634.02,3.11544746]
[1746787484684,0.2741485,635.32,634.02,3.11544746]
[1746787484989,2.02361601,636.32,634.02,3.11544746]
[1746787485290,0.2741485,635.31,634.02,3.11544746]
[1746787485589,2.02361601,637.13,634.02,3.11544746]
[1746787485791,0.27406107,635.3,634.02,3.11544746]
[1746787485990,0.31396681,637.01,634.02,3.11544746]
[1746787486189,0.26426469,637.0,634.02,3.11544746]
[1746787486385,0.27407402,635.29,634.02,3.11544746]
[1746787486586,0.3139816,636.98,634.02,3.11544746]
[1746787486790,0.27407402,635.28,634.02,3.11544746]
[1746787487089,0.3139816,636.98,634.02,3.11544746]
[1746787487289,0.27407725,635.27,634.02,3.11544746]
[1746787487589,0.3139816,636.98,634.02,3.11544746]
[1746787487889,0.27407725,635.26,634.02,3.11544746]
[1746787488091,0.2642648,636.97,634.02,3.11544746]
[1746787488290,0.31399638,636.95,634.02,3.11544746]
[1746787488490,0.27407725,635.25,634.02,3.11544746]
[1746787488687,0.26426652,636.94,634.02,3.11544746]
[1746787488882,0.27408049,635.24,634.02,3.11544746]
[1746787489390,0.27408373,635.23,634.02,3.11544746]
[1746787490692,0.26426439,635.22,634.02,3.11544746]
[1746787492091,0.27408373,635.21,634.02,3.11544746]
[1746787492787,0.26426439,635.2,634.02,3.11544746]
[1746787495087,0.27418955,635.19,634.02,3.11544746]
[1746787495487,0.26426439,635.18,634.02,3.11544746]
[1746787496794,0.27418955,635.19,634.02,3.11544746]
[1746787497095,0.26426345,635.18,634.02,3.11544746]
[1746787498194,0.27422844,635.17,634.02,3.11544746]
[1746787498595,0.26426345,635.16,634.02,3.11544746]
[1746787501097,0.27424465,635.15,634.02,3.11544746]
[1746787501595,0.26426345,635.14,634.02,3.11544746]
[1746787504095,0.274236,635.13,634.02,3.11544746]
[1746787504296,0.26426345,635.12,634.02,3.11544746]
[1746787507099,0.2741593,635.11,634.02,3.11544746]
[1746787507698,0.26426345,635.1,634.02,3.11544746]
[1746787510099,0.2741647,635.09,634.02,3.11544746]
[1746787511100,0.26426345,635.08,634.02,3.11544746]
[1746787516106,0.2741809,635.07,634.02,3.11544746]
[1746787516510,0.26426345,635.06,634.02,3.11544746]
[1746787516809,0.2741809,635.07,634.02,3.11544746]
[1746787517109,0.26423058,635.06,634.02,3.11544746]
[1746787517612,0.2741809,635.07,634.02,3.11544746]
[1746787518911,2.02361601,635.88,634.02,3.11544746]
[1746787519113,0.27415498,635.06,634.02,3.11544746]
[1746787519411,2.02361601,635.88,634.02,3.11544746]
[1746787519608,0.27415066,635.05,634.02,3.11544746]
[1746787520012,2.02361601,636.46,634.02,3.11544746]
[1746787520312,0.27408805,635.04,634.02,3.11544746]
[1746787520513,0.26417744,636.45,634.02,3.11544746]
[1746787520709,0.27408805,635.03,634.02,3.11544746]
[1746787520914,2.02361601,636.46,634.02,3.11544746]
[1746787521214,0.27408481,635.02,634.02,3.11544746]
[1746787521611,2.02361601,636.46,634.02,3.11544746]
[1746787521812,0.27408049,635.01,634.02,3.11544746]
[1746787522014,2.02361601,636.46,634.02,3.11544746]
[1746787522213,2.02361601,636.23,634.02,3.11544746]
[1746787522517,0.26415576,636.22,634.02,3.11544746]
[1746787523115,0.2740697,636.21,634.02,3.11544746]
[1746787523412,0.26415576,636.2,634.02,3.11544746]
[1746787524014,0.2740697,636.21,634.02,3.11544746]
[1746787524509,0.26407753,636.2,634.02,3.11544746]
[1746787525116,0.27409128,636.19,634.02,3.11544746]
[1746787525510,0.26407753,636.18,634.02,3.11544746]
[1746787526714,0.27409128,636.19,634.02,3.11544746]
[1746787527319,0.26411259,636.18,634.02,3.11544746]
[1746787527519,0.26411259,636.17,634.02,3.11544746]
[1746787527818,0.26411259,636.16,634.02,3.11544746]
[1746787528218,0.53813697,636.16,634.02,3.11544746]
[1746787528415,0.26411259,636.15,634.02,3.11544746]
[1746787528721,0.26411259,636.14,634.02,3.11544746]
[1746787529115,0.26411259,636.13,634.02,3.11544746]
[1746787529413,0.26411259,636.12,634.02,3.11544746]
[1746787529819,0.26411259,636.11,634.02,3.11544746]
[1746787530321,0.26411259,636.1,634.02,3.11544746]
[1746787530620,0.26411259,636.09,634.02,3.11544746]
[1746787530919,0.26411259,636.08,634.02,3.11544746]
[1746787531119,0.53820927,636.08,634.02,3.11544746]
[1746787531320,0.26411259,636.07,634.02,3.11544746]
[1746787531921,0.26411259,636.06,634.02,3.11544746]
[1746787532117,0.26411259,636.05,634.02,3.11544746]
[1746787532418,0.26411259,636.04,634.02,3.11544746]
[1746787532823,0.26411259,636.03,634.02,3.11544746]
[1746787533124,0.26411259,636.02,634.02,3.11544746]
[1746787533524,0.26411259,636.01,634.02,3.11544746]
[1746787533926,0.26411259,636.0,634.02,3.11544746]
[1746787534220,0.26411259,635.99,634.02,3.11544746]
[1746787534426,0.5382503,635.99,634.02,3.11544746]
[1746787534626,0.26411259,635.98,634.02,3.11544746]
[1746787534926,0.26411259,635.97,634.02,3.11544746]
[1746787535232,0.26411259,635.96,634.02,3.11544746]
[1746787535635,0.26411259,635.95,634.02,3.11544746]
[1746787535935,0.26411259,635.94,634.02,3.11544746]
[1746787536234,0.26411259,635.93,634.02,3.11544746]
[1746787536431,0.27413771,635.99,634.02,1.90144746]
[1746787536835,2.02361601,636.16,634.02,1.90144746]
[1746787537036,0.26419891,635.98,634.02,1.90144746]
[1746787537238,0.53833878,635.98,634.02,1.90144746]
[1746787537437,0.26419891,635.98,634.02,1.90144746]
[1746787537639,0.53834526,635.97,634.02,1.90144746]
[1746787538039,0.26419891,635.96,634.02,1.90144746]
[1746787538338,0.26419891,635.95,634.02,1.90144746]
[1746787538639,0.26419891,635.94,634.02,1.90144746]
[1746787538936,0.26419891,635.93,634.02,2.39544746]
[1746787539139,0.26419891,635.92,634.02,2.39544746]
[1746787539542,0.26419891,635.91,634.02,3.36444746]
[1746787539741,2.02361601,635.9,634.02,3.36444746]
[1746787539938,2.28781492,635.9,634.02,3.36444746]
[1746787540141,0.26419891,635.89,634.02,3.36444746]
[1746787540842,0.26419891,635.88,634.02,3.36444746]
[1746787541240,0.26419891,635.87,634.02,3.36444746]
[1746787541541,0.26419891,635.86,634.02,3.36444746]
[1746787541947,0.26419891,635.85,634.02,2.49044746]
[1746787542143,0.26419891,635.84,634.02,2.49044746]
[1746787542643,0.26419891,635.83,634.02,2.49044746]
[1746787543043,0.26419891,635.82,634.02,2.49044746]
[1746787543244,0.26419891,635.81,634.02,2.49044746]
[1746787543542,0.26419891,635.8,634.02,2.49044746]
[1746787543741,0.26419891,635.79,634.02,2.49044746]
[1746787544044,0.26419891,635.78,634.02,2.49044746]
[1746787544545,0.26419891,635.77,634.02,2.49044746]
[1746787544745,0.26419891,635.76,634.02,2.49044746]
[1746787545147,0.26419891,635.75,634.02,2.49044746]
[1746787545543,0.26419891,635.74,634.02,2.49044746]
[1746787545848,0.26419891,635.73,634.02,2.49044746]
[1746787546149,0.26419891,635.72,634.02,2.49044746]
[1746787546448,0.26419891,635.71,634.02,2.49044746]
[1746787546749,0.26419891,635.7,634.02,2.49044746]
[1746787547147,0.26419891,635.69,634.02,2.49044746]
[1746787547449,0.26419891,635.72,634.02,2.49044746]
[1746787549148,0.27411827,635.71,634.02,2.49044746]
[1746787549346,0.26419891,635.7,634.02,2.49044746]
[1746787554252,0.27411827,635.71,634.02,2.49044746]
[1746787554552,0.26420078,635.7,634.02,2.49044746]
[1746787555153,0.27412367,635.69,634.02,2.49044746]